bitfinex-derivatives/quotes_ETHF0:USTF0_20250917
["timestamp","ask_amount","ask_price","bid_price","bid_amount"]
[1758143716271,0.816,4519.8,4519.7,0.3317]
[1758143716472,1.044,4519.8,4519.7,0.3317]
[1758143716671,0.3601,4519.7,4519.5,0.5087]
[1758143716876,4.2518,4519.6,4519.5,0.177]
[1758143717382,3.6685,4519.6,4519.5,1.0889]
[1758143718176,4.2528,4519.6,4519.5,0.177]
[1758143718365,4.2528,4519.6,4519.5,0.729]
[1758143718569,3.8927,4519.6,4519.5,1.0889]
[1758143718772,3.4368,4519.6,4519.5,1.0889]
[1758143719074,3.6685,4519.6,4519.5,1.0889]
[1758143719970,3.4395,4519.6,4519.5,1.0889]
[1758143720179,3.4368,4519.6,4519.5,5.0889]
[1758143721678,0.229,4519.6,4519.5,5.0889]
[1758143722280,0.4607,4519.6,4519.5,1.0889]
[1758143722679,0.6849,4519.6,4519.5,1.0889]
[1758143722985,3.2078,4520.1,4519.5,1.0889]
[1758143723279,1.1957608,4520.0,4519.9,0.7765]
[1758143723584,1.5558608,4520.0,4519.9,0.7765]
[1758143724278,1.1957608,4520.0,4519.9,0.7765]
[1758143724480,1.5558608,4520.0,4519.9,0.7765]
[1758143725581,0.3601,4519.9,4519.6,0.3317]
[1758143725783,0.816,4519.7,4519.6,0.552]
[1758143725982,0.816,4519.7,4519.5,0.177]
[1758143726178,0.1217,4519.5,4518.9,0.0221]
[1758143726387,0.2317,4519.0,4518.9,0.7986]
[1758143726589,0.4607,4519.0,4518.9,0.7986]
[1758143727284,3.4395,4519.6,4519.5,0.9119]
[1758143727480,3.6685,4519.6,4519.5,0.9119]
[1758143730486,3.4395,4519.6,4519.5,0.9119]
[1758143730683,3.6685,4519.6,4519.5,0.9119]
[1758143730981,4.2528,4519.6,4519.5,0.7765]
[1758143731183,3.6675,4519.6,4519.5,0.9119]
[1758143731688,3.8917,4519.6,4519.5,0.9119]
[1758143731880,4.2518,4519.6,4519.5,0.9119]
[1758143732082,4.2518,4519.6,4519.5,0.7765]
[1758143732388,4.40817039,4519.6,4519.2,0.3317]
[1758143732687,0.5918,4519.5,4519.4,0.2203]
[1758143732882,0.816,4519.5,4519.4,0.552]
[1758143733083,0.816,4519.5,4519.4,0.7765]
[1758143733284,0.4559,4519.5,4519.4,0.7765]
[1758143736282,0.228,4519.5,4519.4,0.7881]
[1758143736691,0.4612,4519.5,4519.4,0.7881]
[1758143736988,3.2078,4519.6,4519.5,0.94]
[1758143737193,4.1857077,4519.6,4519.5,0.94]
[1758143737694,4.4216077,4519.6,4519.5,0.94]
[1758143738588,4.1936077,4519.6,4519.5,0.94]
[1758143738789,4.4216077,4519.6,4519.5,0.94]
[1758143738994,1.2138077,4519.6,4519.5,0.94]
[1758143739393,1.5566077,4519.6,4519.5,0.94]
[1758143739895,1.5566077,4519.6,4519.5,0.7993]
[1758143741493,1.5566077,4519.6,4519.2,0.0221]
[1758143741795,0.8119,4519.4,4519.3,0.5708]
[1758143741996,1.0399,4519.4,4519.3,0.5708]
[1758143742701,1.55683824,4519.4,4519.2,0.0221]
[1758143742894,0.5169631,4519.3,4519.2,0.0221]
[1758143743088,1.3288631,4519.3,4519.2,0.0221]
[1758143748294,1.3288631,4519.3,4519.2,0.7993]
[1758143748295,0.5169631,4519.3,4519.2,0.7993]
[1758143748600,0.7449631,4519.3,4519.2,0.7993]
[1758143749108,0.228,4519.3,4519.2,0.7993]
[1758143749703,0.4612,4519.3,4519.2,0.7993]
[1758143752702,0.4622,4519.3,4519.2,0.7993]
[1758143753899,0.229,4519.3,4519.2,0.7993]
[1758143754106,3.2078,4519.6,4519.5,0.94]
[1758143754298,3.4368,4519.6,4519.5,0.94]
[1758143755596,3.67,4519.6,4519.5,0.94]
[1758143755796,3.9059,4519.6,4519.5,0.94]
[1758143756499,4.2487,4519.6,4519.5,0.94]
[1758143758005,3.9059,4519.6,4519.5,0.94]
[1758143758206,4.2544,4519.6,4519.5,0.94]
[1758143758994,3.9059,4519.6,4519.5,0.94]
[1758143759194,4.2544,4519.6,4519.5,0.94]
[1758143761202,3.9059,4519.6,4519.5,0.94]
[1758143761399,3.2078,4519.6,4519.5,0.94]
[1758143761605,3.442,4520.1,4520.0,0.9231]
[1758143761803,4.18750449,4520.1,4520.0,0.9231]
[1758143763510,3.4358,4520.1,4520.0,0.9231]
[1758143764006,35.853,4520.6,4520.0,0.9231]
[1758143764304,0.75149912,4520.5,4520.4,0.7939]
[1758143764508,3.2078,4520.9,4520.5,0.1292]
[1758143764710,3.2078,4520.9,4520.8,0.7939]
[1758143764909,3.4358,4520.9,4520.8,0.7939]
[1758143765298,0.228,4520.9,4520.8,0.7939]
[1758143765705,0.3485,4521.4,4520.8,0.4467]
[1758143765909,0.4597,4521.3,4521.2,0.7948]
[1758143767508,0.2317,4521.3,4521.2,0.7948]
[1758143767709,0.4597,4521.3,4521.2,0.7948]
[1758143768409,0.6953,4521.3,4521.2,0.7948]
[1758143768609,1.0257,4521.3,4521.2,0.7948]
[1758143769613,0.4673,4521.3,4521.2,0.7948]
[1758143769814,0.6953,4521.3,4521.2,0.7948]
[1758143770313,0.4673,4521.3,4521.2,0.7948]
[1758143770612,0.6953,4521.3,4521.2,0.7948]
[1758143772013,0.4673,4521.3,4521.2,0.7948]
[1758143772213,0.6953,4521.3,4521.2,0.7948]
[1758143772604,0.4673,4521.3,4521.2,0.7948]
[1758143772809,0.6953,4521.3,4521.2,0.7948]
[1758143773116,3.2078,4521.5,4521.3,0.3394]
[1758143773313,3.5382,4522.2,4521.5,0.1351]
[1758143773513,4.0055,4522.2,4522.1,0.566]
[1758143773716,4.2335,4522.2,4522.1,0.566]
[1758143774917,4.0055,4522.2,4522.1,0.566]
[1758143775118,4.2335,4522.2,4522.1,0.566]
[1758143775319,4.0055,4522.2,4522.1,0.566]
[1758143775617,4.2335,4522.2,4522.1,0.7948]
[1758143776016,3.4395,4522.2,4522.1,0.7948]
[1758143776314,3.6675,4522.2,4522.1,0.7948]
[1758143776710,0.2317,4522.2,4522.1,0.7948]
[1758143777114,0.4597,4522.2,4522.1,0.7948]
[1758143777509,0.3304,4522.5,4522.1,0.4554]
[1758143777716,0.2317,4522.3,4522.2,0.7948]
[1758143778624,0.4597,4522.3,4522.2,0.7948]
[1758143779810,4.2335,4522.3,4522.2,0.7948]
[1758143780619,4.0055,4522.3,4522.2,0.7948]
[1758143780820,4.2325,4522.3,4522.2,0.7948]
[1758143783024,4.0055,4522.3,4522.2,0.7948]
[1758143783220,4.2325,4522.3,4522.2,0.7948]
[1758143783420,4.0055,4522.3,4522.2,0.7948]
[1758143783628,4.2325,4522.3,4522.2,0.7948]
[1758143783819,4.0055,4522.3,4522.2,0.7948]
[1758143784122,4.2325,4522.3,4522.2,0.7948]
[1758143785016,4.0055,4522.3,4522.2,0.7948]
[1758143785217,4.2325,4522.3,4522.2,0.7948]
[1758143786423,4.0055,4522.3,4522.2,0.7948]
[1758143786725,4.2325,4522.3,4522.2,0.7948]
[1758143786920,4.0055,4522.3,4522.2,0.7948]
[1758143787327,4.2325,4522.3,4522.2,0.7948]
[1758143789621,3.9021,4522.3,4522.2,0.7948]
[1758143789824,0.227,4522.3,4522.2,0.7948]
[1758143790018,0.227,4522.3,4522.2,0.566]
[1758143790019,1.0247,4522.3,4522.2,0.566]
[1758143790622,1.0247,4522.3,4522.2,0.3394]
[1758143792219,1.0247,4522.3,4522.2,0.566]
[1758143794234,1.54113033,4522.3,4522.2,0.566]
[1758143794432,1.31413033,4522.3,4522.2,0.566]
[1758143794730,1.21073033,4522.3,4521.8,0.3394]
[1758143794933,1.21073033,4522.3,4521.7,0.0221]
[1758143794934,1.31413033,4522.2,4522.1,0.566]
[1758143795529,1.54113033,4522.2,4522.1,0.7948]
[1758143795929,1.54113033,4522.2,4522.1,0.3394]
[1758143796129,1.54113033,4522.2,4522.1,0.5613]
[1758143796434,1.54113033,4522.2,4522.1,0.3394]
[1758143796828,1.54113033,4522.2,4522.1,0.5613]
[1758143797223,1.54113033,4522.2,4522.1,0.7846]
[1758143798935,1.54151709,4522.2,4522.1,0.7846]
[1758143801133,1.54151709,4522.2,4521.8,0.3477]
[1758143801334,0.799,4521.9,4521.8,0.3477]
[1758143801537,0.799,4521.9,4521.7,0.0221]
[1758143801740,1.026,4521.8,4521.7,0.0221]
[1758143802235,1.026,4521.8,4521.7,0.3698]
[1758143802832,1.026,4521.8,4521.7,0.5917]
[1758143803750,1.026,4521.8,4521.7,0.815]
[1758143804533,1.026,4521.8,4521.7,0.7929]
[1758143806741,0.799,4521.8,4521.7,0.7929]
[1758143806940,0.6884,4521.8,4521.7,0.7929]
[1758143807636,1.026,4521.8,4521.7,0.5696]
[1758143808240,0.799,4521.8,4521.7,0.5696]
[1758143808436,1.026,4521.8,4521.7,0.5696]
[1758143809638,1.026,4521.8,4521.6,0.1769]
[1758143809846,4.52453826,4521.7,4521.6,0.1769]
[1758143810043,4.52453826,4521.7,4521.3,0.0221]
[1758143810250,0.4614,4521.4,4521.3,0.0221]
[1758143810439,1.20613826,4521.4,4520.5,0.4769]
[1758143810640,0.4614,4520.6,4520.5,0.3511]
[1758143810840,0.9349,4520.6,4520.5,0.3511]
[1758143811143,0.9349,4520.6,4520.5,0.6988]
[1758143812747,0.6884,4520.6,4520.5,0.9221]
[1758143814553,0.9349,4520.6,4520.5,0.6988]
[1758143814753,0.6884,4520.6,4520.5,0.6988]
[1758143815146,0.9349,4520.6,4520.5,0.6988]
[1758143815343,0.9349,4520.6,4520.5,0.3477]
[1758143815547,0.9349,4520.6,4520.0,0.1374]
[1758143815548,0.7079,4520.5,4520.4,0.3477]
[1758143815740,0.4614,4520.5,4520.0,0.1374]
[1758143815940,0.4614,4520.5,4519.7,0.1991]
[1758143815941,0.4614,4520.4,4519.7,0.1991]
[1758143816147,0.7079,4519.8,4519.7,0.1991]
[1758143816345,0.8529,4519.8,4519.7,0.1991]
[1758143817247,0.8529,4519.8,4519.7,0.177]
[1758143817747,5.07415,4519.8,4519.7,0.177]
[1758143817952,0.6825,4519.1,4519.0,0.3302]
[1758143818250,0.9095,4519.1,4519.0,0.3302]
[1758143819460,0.2396,4519.0,4518.6,0.3302]
[1758143819655,0.4429,4518.7,4518.6,0.5389]
[1758143819956,0.6699,4518.7,4518.6,0.5389]
[1758143820460,0.9095,4518.7,4518.6,0.3302]
[1758143821161,0.9095,4518.7,4518.6,0.5389]
[1758143821363,0.9095,4518.7,4518.0,0.3461]
[1758143821364,0.6825,4518.1,4518.0,0.3461]
[1758143821555,0.6699,4518.1,4517.8,0.1058]
[1758143821755,0.4429,4517.9,4517.8,0.3145]
[1758143821964,0.4429,4517.9,4517.8,0.8739]
[1758143822857,0.6825,4517.9,4517.8,0.1058]
[1758143823160,0.6825,4517.9,4517.8,0.0837]
[1758143823962,3.8903,4517.9,4517.8,0.0837]
[1758143824763,3.8903,4517.9,4517.2,0.3302]
[1758143824957,0.4429,4517.3,4517.2,0.3302]
[1758143825158,0.8258,4517.3,4517.2,0.5389]
[1758143825363,0.6699,4517.3,4517.2,0.5389]
[1758143825854,3.6647,4517.9,4517.8,0.23]
[1758143826055,3.8917,4517.9,4517.8,0.5578]
[1758143826255,4.0467,4517.9,4517.8,0.5578]
[1758143826457,4.0467,4517.9,4517.8,0.3278]
[1758143826653,3.8197,4517.9,4517.8,0.3278]
[1758143826855,4.0467,4517.9,4517.8,0.3278]
[1758143827455,3.4348,4517.9,4517.8,0.7676]
[1758143827766,0.227,4517.9,4517.8,0.7676]
[1758143828261,3.2078,4518.5,4518.0,0.1284]
[1758143828463,0.4542,4518.4,4518.3,0.7676]
[1758143829067,0.6839,4518.4,4518.3,0.7676]
[1758143829567,0.8389,4518.4,4518.3,0.3278]
[1758143829862,0.6839,4518.4,4518.3,0.5578]
[1758143830166,0.6839,4518.4,4518.3,0.7676]
[1758143831065,3.2078,4519.0,4518.5,0.1284]
[1758143831259,35.855,4520.0,4518.9,0.7676]
[1758143831457,36.3119,4520.0,4519.9,0.7676]
[1758143831660,36.5389,4520.0,4519.9,0.7676]
[1758143832066,36.3119,4520.0,4519.9,0.7676]
[1758143832462,36.5389,4520.0,4519.9,0.7676]
[1758143832870,36.3119,4520.0,4519.9,0.7676]
[1758143833163,0.6119,4519.7,4519.6,0.3278]
[1758143833370,0.8389,4519.7,4519.6,0.3278]
[1758143834066,0.8389,4519.7,4519.5,0.1284]
[1758143834067,0.8389,4519.7,4519.1,0.3278]
[1758143834258,0.4569,4518.9,4518.5,0.1284]
[1758143834563,0.227,4518.8,4518.5,0.5682]
[1758143834865,0.4569,4518.6,4518.5,0.5682]
[1758143835063,0.4569,4518.6,4518.5,0.896]
[1758143835265,0.6119,4518.6,4518.5,0.4562]
[1758143835462,0.4569,4518.6,4518.5,0.896]
[1758143836772,0.2272,4518.6,4518.5,0.896]
[1758143836970,0.4542,4518.6,4518.5,0.896]
[1758143837772,0.2272,4518.6,4518.5,0.896]
[1758143837970,0.6839,4518.6,4518.5,0.896]
[1758143838376,0.4542,4518.6,4518.5,0.896]
[1758143842460,0.8389,4518.6,4518.5,0.6862]
[1758143842667,0.6839,4518.6,4517.6,3.2078]
[1758143842971,3.2078,4518.9,4517.6,3.2078]
[1758143842972,3.435,4518.9,4518.8,0.23]
[1758143843169,3.8917,4518.9,4518.8,0.7676]
[1758143845267,4.41372556,4518.9,4518.8,0.7676]
[1758143846169,1.20592556,4518.9,4518.8,0.7676]
[1758143846470,0.97892556,4518.9,4518.8,0.3278]
[1758143846670,1.36092556,4518.9,4518.8,0.3278]
[1758143847368,1.20592556,4518.9,4518.8,0.5578]
[1758143848575,4.56872556,4518.9,4518.8,0.3278]
[1758143848875,0.6119,4518.4,4518.2,0.0221]
[1758143849068,1.36165366,4518.3,4518.2,0.3499]
[1758143849773,1.36165366,4518.3,4518.2,0.0221]
[1758143849971,1.36165366,4518.3,4518.2,0.3499]
[1758143850776,0.52275366,4518.3,4518.2,0.7897]
[1758143850965,0.52275366,4518.3,4518.2,0.7676]
[1758143851166,0.97726987,4518.3,4518.2,0.7676]
[1758143851769,0.4542,4518.3,4518.2,0.7676]
[1758143852273,0.227,4518.3,4518.2,3.9754]
[1758143852768,0.4542,4518.3,4518.2,3.9754]
[1758143852975,0.4542,4518.3,4518.2,0.7676]
[1758143854068,0.6839,4518.3,4518.2,0.7676]
[1758143854273,1.20707027,4518.3,4518.2,0.7676]
[1758143854469,0.97737027,4518.3,4518.2,0.7676]
[1758143854674,0.75017027,4518.3,4518.2,0.7676]
[1758143856379,1.32927027,4518.3,4518.2,0.3278]
[1758143856677,1.32927027,4518.3,4518.2,0.5452]
[1758143856973,1.18577027,4518.3,4518.2,0.5452]
[1758143857576,1.18577027,4518.3,4518.2,0.7656]
[1758143858772,0.95877027,4518.3,4518.2,0.7656]
[1758143858969,1.18577027,4518.3,4518.2,0.7656]
[1758143860078,0.95877027,4518.3,4518.2,0.7656]
[1758143860379,1.18577027,4518.3,4518.2,0.7656]
[1758143864175,0.52317027,4518.3,4518.2,0.7656]
[1758143864381,0.52317027,4518.3,4517.7,3.2299]
[1758143864382,0.2094,4518.6,4518.5,0.8866]
[1758143864682,1.16898127,4518.6,4518.5,0.8866]
[1758143865982,1.31248127,4518.6,4518.5,0.8866]
[1758143866279,1.08548127,4518.6,4518.5,0.8866]
[1758143866478,1.31248127,4518.6,4518.5,0.8866]
[1758143866677,1.31248127,4518.6,4518.5,0.6662]
[1758143869782,0.4178,4517.8,4517.7,0.5554]
[1758143869978,0.6448,4517.8,4517.7,0.5554]
[1758143870374,1.16908962,4517.8,4517.7,0.5554]
[1758143870580,1.31258962,4517.8,4517.7,0.5554]
[1758143870782,1.31258962,4517.8,4517.7,0.338]
[1758143870983,8.18043962,4517.8,4516.6,3.2078]
[1758143871179,8.18043962,4517.8,4516.6,3.6456]
[1758143871180,0.2094,4516.7,4516.6,3.6456]
[1758143871379,0.3444,4516.7,4516.6,0.4378]
[1758143871575,0.5528,4516.7,4516.6,0.4378]
[1758143872073,0.8375,4516.7,4516.6,0.2174]
[1758143872479,0.5528,4516.7,4516.1,3.2078]
[1758143872679,0.7025,4516.6,4516.5,0.3503]
[1758143872875,0.2847,4516.5,4516.4,0.2174]
[1758143873079,0.2847,4516.5,4516.4,0.5333]
[1758143873080,0.9295,4516.5,4516.4,0.5333]
[1758143873282,0.9295,4516.5,4516.4,0.3159]
[1758143873484,0.9295,4516.5,4516.0,0.1329]
[1758143873485,0.2847,4516.4,4516.0,0.1329]
[1758143873784,0.4931,4516.4,4516.3,0.2174]
[1758143873986,0.7025,4516.4,4516.3,0.5333]
[1758143874380,3.2078,4517.1,4516.4,0.3159]
[1758143874684,3.2078,4517.1,4516.1,3.2078]
[1758143874685,0.4178,4516.7,4516.6,0.7537]
[1758143874987,0.7025,4516.6,4516.5,0.3503]
[1758143875285,0.4178,4516.6,4516.5,0.8866]
[1758143875880,0.4178,4516.6,4516.5,0.3159]
[1758143875881,0.7025,4516.6,4516.5,0.3159]
[1758143876385,0.7025,4516.6,4516.5,0.5333]
[1758143876585,0.7025,4516.6,4516.5,0.6662]
[1758143876788,3.4172,4517.1,4517.0,0.8866]
[1758143876982,4.16675761,4517.1,4517.0,0.8866]
[1758143877286,3.8526,4517.1,4517.0,0.8866]
[1758143878182,4.1333,4517.1,4517.0,0.8866]
[1758143878487,0.9255,4517.1,4517.0,0.8866]
[1758143880683,35.862,4517.5,4517.0,0.5707]
[1758143880888,35.862,4517.5,4517.4,0.3169]
[1758143881083,36.089,4517.5,4517.4,0.7502]
[1758143881991,0.2154,4518.1,4518.0,0.5675]
[1758143882296,0.6609,4518.1,4518.0,0.5675]
[1758143882587,0.9416,4518.1,4517.6,0.3169]
[1758143882785,3.2078,4518.2,4518.0,0.8844]
[1758143882989,3.2078,4518.2,4518.1,0.7502]
[1758143883187,3.4348,4518.2,4518.1,0.7502]
[1758143884293,36.5846,4519.0,4518.9,0.2214]
[1758143884591,36.3039,4519.0,4518.9,0.7502]
[1758143884791,36.5309,4519.0,4518.9,0.7502]
[1758143884993,39.8562,4519.0,4518.0,0.1342]
[1758143885188,0.80295092,4518.9,4518.1,0.3169]
[1758143885387,0.2154,4518.2,4518.1,0.7502]
[1758143885589,0.4424,4518.2,4518.1,0.7502]
[1758143885789,0.2154,4518.2,4518.1,0.7502]
[1758143885989,0.4424,4518.2,4518.1,0.7502]
[1758143886189,0.227,4518.2,4518.1,0.7502]
[1758143886394,39.2967,4519.0,4518.9,0.7565]
[1758143886696,40.25697588,4519.0,4518.9,0.7565]
[1758143886895,39.7347,4519.0,4518.9,0.7565]
[1758143887295,36.5269,4519.0,4518.9,0.7565]
[1758143888990,36.8046,4519.0,4518.9,0.7565]
[1758143889196,36.5269,4519.0,4518.6,0.3275]
[1758143889389,0.2189,4518.6,4518.5,0.3365]
[1758143889585,0.4459,4518.6,4518.5,0.558]
[1758143890195,0.4459,4518.6,4518.5,0.8855]
[1758143891399,0.227,4518.6,4518.5,0.8855]
[1758143891999,0.227,4518.6,4518.5,0.558]
[1758143892200,0.227,4518.6,4518.5,0.8855]
[1758143893300,35.87,4519.0,4518.5,0.8855]
[1758143893495,35.87,4519.0,4518.9,0.7565]
[1758143893707,40.8,4520.4,4519.4,0.429]
[1758143893708,3.2078,4520.2,4519.4,0.429]
[1758143893901,3.2078,4520.2,4519.0,0.129]
[1758143893902,3.2078,4520.2,4520.1,0.7565]
[1758143894100,3.6537,4520.2,4520.1,0.7565]
[1758143894794,3.8647,4520.2,4520.1,0.7565]
[1758143896302,0.6569,4520.2,4520.1,0.7565]
[1758143896502,0.4299,4520.2,4520.1,0.7565]
[1758143896802,35.863,4520.5,4520.4,0.7565]
[1758143897101,36.09,4520.5,4520.4,0.7565]
[1758143897294,0.227,4520.5,4520.4,0.7565]
[1758143897512,3.2078,4521.2,4520.5,0.8855]
[1758143897703,1.227,4520.6,4520.5,0.8855]
[1758143898199,1.6569,4520.6,4520.5,0.4565]
[1758143898501,0.4299,4520.5,4520.4,0.535]
[1758143900406,0.7076,4520.5,4520.4,0.535]
[1758143901299,0.4299,4520.5,4520.4,0.535]
[1758143902407,0.4299,4520.5,4520.4,0.7565]
[1758143904401,1.0,4520.6,4520.5,0.129]
[1758143904607,1.227,4520.6,4520.5,0.8855]
[1758143904806,1.0,4520.6,4520.5,0.8855]
[1758143905010,1.227,4520.6,4520.5,0.8855]
[1758143905203,1.4459,4520.6,4520.5,0.8855]
[1758143905405,1.6569,4520.6,4520.5,0.8855]
[1758143910102,1.4299,4520.6,4520.5,0.8855]
[1758143910304,1.6569,4520.6,4520.5,0.8855]
[1758143910508,1.9346,4520.6,4520.5,0.8855]
[1758143911208,1.4459,4520.6,4520.5,0.8855]
[1758143916012,1.0,4520.6,4520.5,0.8855]
[1758143918414,1.2169,4520.6,4520.5,0.8855]
[1758143918805,1.2169,4520.6,4520.1,3.2078]
[1758143918806,1.6996,4520.6,4520.1,3.2078]
[1758143919010,0.4331,4520.2,4520.1,3.4096]
[1758143919212,0.4331,4520.2,4520.1,3.631]
[1758143919611,0.4331,4520.2,4520.1,3.9445]
[1758143920016,0.2169,4520.2,4520.1,3.9445]
[1758143920211,1.0,4520.6,4520.1,3.9445]
[1758143920410,1.4331,4520.6,4520.5,0.637]
[1758143920608,1.6996,4520.6,4520.5,0.637]
[1758143920810,1.4331,4520.6,4520.5,0.8584]
[1758143921104,1.0,4520.6,4520.5,0.8584]
[1758143921310,1.2169,4520.6,4520.5,0.8584]
[1758143922211,1.74597279,4520.6,4520.5,0.8584]
[1758143923010,1.96217279,4520.6,4520.5,0.8584]
[1758143923211,2.18817279,4520.6,4520.5,0.8584]
[1758143925517,1.74597279,4520.6,4520.5,0.8584]
[1758143925720,1.75507279,4520.6,4520.5,0.8584]
[1758143926224,1.52907279,4520.6,4520.5,0.8584]
[1758143926421,1.0,4520.6,4520.5,0.8584]
[1758143928523,0.0608,4522.0,4520.5,0.8584]
[1758143928524,0.3083,4521.4,4521.3,0.2102]
[1758143928724,0.1277,4521.5,4521.3,0.2102]
[1758143928725,0.5371967,4521.5,4521.3,3.418]
[1758143928928,0.3083,4521.9,4521.4,0.0657]
[1758143929226,0.3083,4521.9,4521.8,3.418]
[1758143929227,0.5252,4521.9,4521.8,3.418]
[1758143929417,1.27811385,4521.9,4521.8,3.418]
[1758143932525,0.7414,4521.9,4521.8,3.418]
[1758143934620,0.7414,4521.9,4521.8,3.3129]
[1758143934824,0.1277,4522.0,4521.4,0.1051]
[1758143934825,0.5608,4521.5,4521.4,0.1051]
[1758143935435,0.8691,4521.5,4521.4,0.1051]
[1758143935635,0.8691,4521.5,4521.4,0.2102]
[1758143935830,0.5608,4521.5,4521.3,3.2078]
[1758143936035,0.7414,4521.4,4521.3,3.2078]
[1758143936437,0.7414,4521.4,4521.3,3.3129]
[1758143937533,0.3029,4521.9,4521.4,0.0659]
[1758143937738,0.3029,4521.9,4521.8,0.211]
[1758143938331,0.5152,4521.9,4521.8,0.211]
[1758143938937,0.7289,4521.9,4521.8,3.4188]
[1758143939134,3.2078,4522.9,4521.9,0.0659]
[1758143939135,0.3029,4522.6,4521.9,0.0659]
[1758143939433,0.1319,4523.5,4522.4,0.211]
[1758143939434,0.5996,4522.5,4522.4,0.211]
[1758143939640,0.8133,4522.5,4522.4,0.211]
[1758143945143,0.8133,4522.5,4522.3,3.2078]
[1758143945144,0.5104,4522.5,4522.3,3.2078]
[1758143945445,0.7289,4522.4,4522.3,3.2078]
[1758143946543,0.7289,4522.4,4522.3,3.3086]
[1758143946746,0.7289,4522.4,4522.3,3.4094]
[1758143946747,0.5152,4522.4,4522.3,3.4094]
[1758143947156,0.7286,4522.4,4522.3,3.4094]
[1758143947348,0.7286,4522.4,4522.3,3.3086]
[1758143947645,0.7286,4522.4,4522.3,3.2078]
[1758143951848,0.7286,4522.4,4522.3,3.3086]
[1758143957151,0.7286,4522.4,4522.3,3.2078]
[1758143958851,4.94972,4522.4,4522.1,0.199]
[1758143959056,3.74753625,4522.3,4522.1,0.199]
[1758143959254,1.29423625,4522.2,4522.1,0.199]
[1758143959454,1.51536625,4522.2,4522.1,0.1769]
[1758143959755,1.29423625,4522.2,4522.1,0.1769]
[1758143960454,1.52023625,4522.2,4522.1,0.1769]
[1758143960854,1.52023625,4522.2,4521.6,3.2078]
[1758143960855,0.7545,4521.7,4521.6,3.2078]
[1758143961662,0.3461,4521.0,4520.9,3.4094]
[1758143961851,0.6676,4521.0,4520.9,3.4094]
[1758143962050,0.881,4521.0,4520.9,3.2078]
[1758143962745,0.881,4521.0,4520.7,0.0221]
[1758143963359,0.53965078,4520.9,4520.7,0.0221]
[1758143963658,1.52018852,4520.8,4520.7,0.0221]
[1758143963853,0.9805,4520.8,4520.7,0.0221]
[1758143968461,0.433,4520.3,4520.2,3.2078]
[1758143968658,0.7545,4520.3,4520.2,3.2078]
[1758143969760,0.881,4520.0,4519.9,0.1361]
[1758143969958,0.881,4520.0,4519.5,3.2078]
[1758143970152,0.2196,4519.6,4519.5,3.48]
[1758143970348,0.5411,4519.6,4519.5,3.48]
[1758143971662,0.3215,4519.6,4519.5,3.5651]
[1758143971858,0.1265,4520.5,4519.9,0.2722]
[1758143972066,0.8945,4520.4,4520.3,0.2722]
[1758143972560,0.3215,4520.4,4520.3,0.3573]
[1758143972751,0.448,4521.0,4520.6,0.2722]
[1758143972956,0.448,4521.0,4520.9,0.3573]
[1758143973857,0.3215,4521.0,4520.9,0.3573]
[1758143975360,0.448,4521.0,4520.9,0.3573]
[1758143975760,0.4339,4521.5,4520.9,4.2722]
[1758143975950,0.6599,4521.5,4521.4,0.2426]
[1758143976155,0.8705,4521.5,4521.4,0.2426]
[1758143976752,0.6445,4521.5,4521.4,0.2426]
[1758143976960,0.8705,4521.5,4521.4,0.2426]
[1758143977663,1.0692,4521.5,4521.4,0.2426]
[1758143979764,0.4093,4521.1,4521.0,3.2078]
[1758143979952,0.1294,4520.5,4520.4,3.4504]
[1758143980157,0.6474,4520.5,4520.4,3.4504]
[1758143980357,0.8461,4520.5,4520.4,3.4504]
[1758143980860,0.8461,4520.5,4520.4,3.3291]
[1758143986961,0.8461,4520.5,4520.4,3.4504]
[1758143988572,0.8461,4520.5,4520.4,3.3291]
[1758143990171,0.8461,4520.5,4520.4,3.4504]
[1758143996170,0.8461,4520.5,4520.0,0.2534656]
[1758143996171,0.8461,4520.5,4519.8,0.1769]
[1758143996375,0.8461,4520.0,4519.9,3.4504]
[1758144000374,0.4368,4520.0,4519.9,3.5183]
[1758144001376,0.3173,4520.4,4519.9,3.4504]
[1758144001577,0.7373,4520.4,4520.3,0.2172]
[1758144001776,0.7373,4520.4,4520.3,0.1086]
[1758144001984,0.7373,4520.4,4520.3,0.2172]
[1758144002985,0.5264,4520.4,4520.3,0.2172]
[1758144003185,0.7373,4520.4,4520.3,0.2172]
[1758144003580,0.7373,4520.4,4520.3,0.1086]
[1758144003776,0.8568,4520.0,4519.9,3.3164]
[1758144004378,0.8568,4520.0,4519.9,3.425]
[1758144005283,0.8568,4520.0,4519.9,3.3164]
[1758144006289,0.8568,4520.0,4519.9,3.425]
[1758144007280,0.8568,4520.0,4519.9,3.2078]
[1758144008895,0.8381,4519.5,4519.4,3.4888]
[1758144009391,0.8381,4519.5,4519.4,3.3848]
[1758144009593,0.8381,4519.5,4519.4,0.177]
[1758144009594,5.05937,4519.5,4519.4,0.177]
[1758144009788,4.8381,4519.5,4519.4,0.177]
[1758144009984,5.377003,4519.5,4519.4,0.177]
[1758144010493,5.598273,4519.5,4519.4,0.177]
[1758144010799,5.377003,4519.5,4519.4,0.177]
[1758144013394,5.377003,4519.5,4519.3,0.0221]
[1758144013590,0.53803136,4519.4,4519.3,0.0221]